[Event "Czech Extraliga 2024-25"]
[Site "Czechia"]
[Date "2024.11.02"]
[Round "1.2"]
[White "Havelka, Josef"]
[Black "Blohberger, Felix"]
[Result "1/2-1/2"]
[ECO "C56"]
[WhiteElo "2365"]
[BlackElo "2536"]
[Annotator "TA"]
[PlyCount "86"]
[EventDate "2024.09.12"]
[EventType "team-tourn"]
[EventCountry "CZE"]
[SourceTitle "playchess.com"]
[Source "ChessBase"]
[SourceQuality "1"]
[TimeControl "40/5400+30:1800+30"]

{[%evp 14,86,0,-12,0,0,-7,-20,-14,-25,-16,-54,-45,-54,-48,-59,-27,-24,0,-31,-22,-64,-76,-60,-58,-67,-80,-85,-52,-145,-128,-105,-60,-55,-46,-44,-47,-35,-22,-21,-25,-41,-56,-95,-105,-114,-116,-112,-65,-118,-69,-62,-62,-63,-62,-66,-68,-49,-16,-21,-31,-71,-44,-61,-32,-34,-18,-89,-17,-15,-6,-10,0,0,0]} 1. e4 {[%emt 0:00:04]} e5 {[%emt 0:00:11]} 2. Nf3 {[%emt 0:00:06]} Nc6 {[%emt 0:00:03]} 3. Bc4 {[%emt 0:00:14]} Nf6 {[%emt 0:00:05]} 4. d4 {[%emt 0:00:36]} exd4 {[%emt 0:00:28]} 5. e5 {[%emt 0:00:26]} d5 {[%emt 0:01:38]} 6. Bb5 {[%emt 0:00:27]} Nd7 {[%emt 0:01:51][%cal Bf6d7,Bd7b8,Bb8c6,Bc6d4][%mdl 32]} 7. O-O {[%emt 0:01:31]} Be7 {[%emt 0:00:15]} 8. Re1 {[%emt 0:01:34][%cal Ob5c6]} O-O {[%emt 0:05:45]} 9. Bxc6 {[%emt 0:00:34]} bxc6 {[%emt 0:00:06]} 10. Nxd4 {[%emt 0:00:05]} Nb8 {[%emt 0:00:09]} 11. Nc3 {[%emt 0:04:27]} c5 {[%emt 0:02:01]} 12. Ndb5 {[%emt 0:02:48]} Be6 {[%emt 0:06:49]} 13. Ne2 {[%emt 0:04:08]} Nc6 {[%emt 0:11:10]} 14. Nf4 {[%emt 0:05:11]} Rb8 {[%emt 0:02:01]} 15. Nc3 {[%emt 0:23:01][%cal Rc3d5]} Nd4 {[%emt 0:01:03]} 16. Nxe6 {[%emt 0:00:40]} fxe6 {[%emt 0:00:27]} 17. Na4 {[%emt 0:02:57]} Qe8 {[%emt 0:12:24]} 18. c3 {[%emt 0:03:22]} Nf5 {[%emt 0:00:22]} 19. b3 {[%emt 0:01:36]} c4 {[%emt 0:08:02]} 20. bxc4 {[%emt 0:07:54]} dxc4 {[%emt 0:00:49] aiming for ...Nh4.} 21. Nb2 {[%emt 0:06:08] [#]} (21. Qc2 $1 $15) 21... Bc5 $1 $17 {[%emt 0:22:24] ...Nh4 would now be deadly.} 22. Re2 {[%emt 0:04:04][%cal Od1a4]} Qc6 {[%emt 0:06:01]} 23. Qf1 {[%emt 0:11:39]} Rf7 {[%emt 0:07:19]} 24. Nxc4 {[%emt 0:07:30]} Rbf8 {[%emt 0:00:52][%cal Of5g3]} 25. Ne3 $1 {[%emt 0:03:22]} Bb6 {[%emt 0:05:39][%mdl 1024] Black has compensation.} 26. Nd1 {[%emt 0:01:35]} h6 {[%emt 0:02:22]} 27. a4 {[%emt 0:01:18]} a5 {[%emt 0:00:11]} 28. Rb2 {[%emt 0:02:51]} Rd8 {[%emt 0:02:08]} 29. Rd2 {[%emt 0:02:16]} Rxd2 {[%emt 0:01:08]} 30. Bxd2 {[%emt 0:00:04]} Qd5 {[%emt 0:00:45]} (30... Rd7 $17 31. Be1 Qe4) 31. Be1 {[%emt 0:00:32]} ({White should try} 31. Qe2 $15) 31... Qxe5 {[%emt 0:00:18]} (31... Nh4 $1 $17 {[%cal Of7f5] Threatens to win with ...Rf5!} 32. c4 Qxe5) 32. Nb2 $15 {[%emt 0:01:37]} Ne3 {[%emt 0:00:35] Prevents Nc4} 33. Nc4 $1 {[%emt 0:00:41]} (33. fxe3 $2 {perishes.} Rxf1+ 34. Kxf1 Qxe3 $19 (34... Bxe3 $2 35. Nd1 $19)) ({But not} 33. Qe2 $2 Qe4 34. fxe3 Bxe3+ $19 (34... Qxe3+ 35. Qxe3 Bxe3+ 36. Bf2 $19) (34... Qxe3+ $2 35. Qxe3 Bxe3+ 36. Bf2 $19)) 33... Nxc4 {[%emt 0:00:39]} 34. Qxc4 {[%emt 0:00:06]} Rf4 {[%emt 0:00:28] Prevents g3} 35. Qb5 {[%emt 0:01:11]} Qd5 {[%emt 0:00:58]} 36. Kf1 {[%emt 0:00:52]} (36. Qxd5 {simplifies} exd5 37. Kf1 Kf7 38. f3) 36... Kf7 {[%emt 0:00:11]} (36... g5 {simplifies} 37. h3 Kf7 38. Qxd5 exd5 39. f3 Rc4) 37. Qe2 {[%emt 0:00:34]} Qc6 {[%emt 0:00:48]} 38. Qh5+ {[%emt 0:00:33]} Kg8 {[%emt 0:00:19]} 39. Qb5 {[%emt 0:00:24]} Qd5 {[%emt 0:00:19]} 40. Rc1 {[%emt 0:00:57] [#]} (40. h3 $11) 40... Rc4 {[%emt 0:00:53]} ({Black should play} 40... Qa2 $1 $17 {[%cal Rf4f2] ( -> ...Rxf2+)} 41. f3 Qxa4 (41... Rxa4 42. c4 $11)) 41. Rd1 $11 {[%emt 0:06:35] The position is equal.} Qxb5 {[%emt 0:07:22]} 42. axb5 {[%emt 0:00:29]} Rc5 {[%emt 0:02:01]} 43. Rb1 {[%emt 0:00:48]} a4 {[%emt 0:00:24] Weighted Error Value: White=0.15 (very precise) /Black=0.14 (very precise) .  Mistake:       	White=3     	Black=3      Inaccurate:     	White=5     	Black=6      OK:         	White=8     	Black=13     Best:        	White=3     	Black=1      Strong:       	White=2     	Black=1} 1/2-1/2

[Event "Czech Extraliga 2024-25"]
[Site "Czechia"]
[Date "2024.11.02"]
[Round "1.2"]
[White "Smolik, Jachym"]
[Black "L'Ami, Erwin"]
[Result "0-1"]
[ECO "D35"]
[WhiteElo "2278"]
[BlackElo "2614"]
[Annotator "ChessBase"]
[PlyCount "128"]
[EventDate "2024.09.12"]
[EventType "team-tourn"]
[EventCountry "CZE"]
[SourceTitle "playchess.com"]
[Source "ChessBase"]
[SourceQuality "1"]
[TimeControl "40/5400+30:1800+30"]

1. c4 {[%emt 0:00:02]} e6 {[%emt 0:00:57]} 2. Nc3 {[%emt 0:00:08]} d5 {[%emt 0:00:09]} 3. d4 {[%emt 0:00:23]} Nf6 {[%emt 0:00:12]} 4. cxd5 {[%emt 0:00:08]} exd5 {[%emt 0:00:07]} 5. Bg5 {[%emt 0:00:05]} c6 {[%emt 0:00:52]} 6. e3 {[%emt 0:00:07]} Bf5 {[%emt 0:01:24]} 7. Qf3 {[%emt 0:00:10]} Bg6 {[%emt 0:00:06]} 8. Bxf6 {[%emt 0:00:09]} Qxf6 {[%emt 0:00:08]} 9. Qxf6 {[%emt 0:00:06]} gxf6 {[%emt 0:00:07]} 10. Nf3 {[%emt 0:00:37]} Nd7 {[%emt 0:02:34]} 11. Nh4 {[%emt 0:03:30]} Bb4 {[%emt 0:01:44]} 12. a3 {[%emt 0:04:57]} Bxc3+ {[%emt 0:02:38]} 13. bxc3 {[%emt 0:00:02]} b5 {[%emt 0:00:42]} 14. a4 {[%emt 0:05:12]} bxa4 {[%emt 0:01:17]} 15. Nxg6 {[%emt 0:03:57]} fxg6 {[%emt 0:04:04]} 16. Rxa4 {[%emt 0:03:13]} a5 {[%emt 0:00:58]} 17. Bd3 {[%emt 0:02:31]} Nb6 {[%emt 0:02:04]} 18. Ra2 {[%emt 0:02:26]} Kd7 {[%emt 0:02:55]} 19. h4 {[%emt 0:04:53]} a4 {[%emt 0:11:16]} 20. Ke2 {[%emt 0:02:39]} f5 {[%emt 0:10:11]} 21. h5 {[%emt 0:00:58]} Rhe8 {[%emt 0:12:48]} 22. Kf3 {[%emt 0:04:21]} Ke6 {[%emt 0:06:08]} 23. g4 {[%emt 0:13:12]} fxg4+ {[%emt 0:06:18]} 24. Kxg4 {[%emt 0:00:04]} Kf6 {[%emt 0:00:22]} 25. hxg6 {[%emt 0:01:03]} hxg6 {[%emt 0:00:05]} 26. Rh6 {[%emt 0:06:59]} Rg8 {[%emt 0:00:46]} 27. f4 {[%emt 0:13:29]} Nc8 {[%emt 0:07:36]} 28. f5 {[%emt 0:09:00]} Ne7 {[%emt 0:03:50]} 29. fxg6 {[%emt 0:00:33]} a3 {[%emt 0:00:28]} 30. Bb1 {[%emt 0:15:51]} Rab8 {[%emt 0:05:00]} 31. Rf2+ {[%emt 0:00:01]} Ke6 {[%emt 0:00:14]} 32. Bd3 {[%emt 0:03:06]} Ra8 {[%emt 0:00:27]} 33. Ra2 {[%emt 0:01:17]} Kf6 {[%emt 0:01:00]} 34. e4 {[%emt 0:01:42]} dxe4 {[%emt 0:01:41]} 35. Bxe4 {[%emt 0:00:03]} Ra5 {[%emt 0:00:43]} 36. Rf2+ {[%emt 0:00:43]} Ke6 {[%emt 0:00:27]} 37. Rh5 {[%emt 0:00:48]} Nd5 {[%emt 0:05:23]} 38. Re5+ {[%emt 0:00:28]} Kd6 {[%emt 0:03:55]} 39. Bxd5 {[%emt 0:00:32]} cxd5 {[%emt 0:01:46]} 40. Rf6+ {[%emt 0:00:09]} Kd7 {[%emt 0:01:04]} 41. Re1 {[%emt 0:03:10]} a2 {[%emt 0:04:45]} 42. Ra1 {[%emt 0:00:06]} Ra3 {[%emt 0:05:06]} 43. Kf4 {[%emt 0:04:35]} Re8 {[%emt 0:08:12]} 44. Rf5 {[%emt 0:11:52]} Kc6 {[%emt 0:03:17]} 45. Re5 {[%emt 0:01:45]} Rf8+ {[%emt 0:04:14]} 46. Kg5 {[%emt 0:03:28]} Rf2 {[%emt 0:02:14]} 47. Kh6 {[%emt 0:02:37]} Ra7 {[%emt 0:11:46]} 48. Rg5 {[%emt 0:04:37]} Rh2+ {[%emt 0:00:00]} 49. Rh5 {[%emt 0:00:03]} Rb2 {[%emt 0:00:00]} 50. Rhh1 {[%emt 0:02:55]} Rg2 {[%emt 0:00:00]} 51. Rhf1 {[%emt 0:00:26]} Kb5 {[%emt 0:00:00]} 52. Rf7 {[%emt 0:00:35]} Ra6 {[%emt 0:00:00]} 53. Kh7 {[%emt 0:00:20]} Rh2+ {[%emt 0:00:00]} 54. Kg7 {[%emt 0:00:11]} Kc4 {[%emt 0:00:00]} 55. Rc7+ {[%emt 0:01:11]} Kd3 {[%emt 0:00:00]} 56. Kf7 {[%emt 0:00:13]} Rf2+ {[%emt 0:00:00]} 57. Kg7 {[%emt 0:00:45]} Kc2 {[%emt 0:01:51]} 58. Rb7 {[%emt 0:00:30]} Kxc3 {[%emt 0:00:35]} 59. Rf7 {[%emt 0:00:29]} Rg2 {[%emt 0:00:27]} 60. Rf6 {[%emt 0:00:34]} Rxf6 {[%emt 0:01:52]} 61. Kxf6 {[%emt 0:01:04]} Kb2 {[%emt 0:00:22]} 62. Rd1 {[%emt 0:00:00]} a1=Q {[%emt 0:02:23]} 63. Rxa1 {[%emt 0:00:00]} Kxa1 {[%emt 0:00:00]} 64. Ke5 {[%emt 0:00:00]} Rg5+ {[%emt 0:00:00]} 0-1

[Event "Czech Extraliga 2024-25"]
[Site "Czechia"]
[Date "2024.11.02"]
[Round "1.3"]
[White "Anton Guijarro, David"]
[Black "Kempinski, Robert"]
[Result "1-0"]
[ECO "B32"]
[WhiteElo "2671"]
[BlackElo "2560"]
[Annotator "TA"]
[PlyCount "129"]
[EventDate "2024.09.12"]
[EventType "team-tourn"]
[EventCountry "CZE"]
[SourceTitle "playchess.com"]
[Source "ChessBase"]
[SourceQuality "1"]
[TimeControl "40/5400+30:1800+30"]

{[%evp 69,129,70,64,64,147,116,210,26,40,48,46,57,45,10,11,11,11,10,8,10,10,14,8,8,7,8,4,0,0,0,0,0,0,0,0,0,0,0,0,0,0,0,105,105,204,168,247,184,512,502,906,855,646,1881,2289,2118,1573,2364,29951,29942,7029,5914]} 1. e4 {[%emt 0:00:08]} c5 {[%emt 0:00:19]} 2. Nf3 {[%emt 0:00:14]} Nc6 {[%emt 0:00:26]} 3. d4 {[%emt 0:01:19]} cxd4 {[%emt 0:00:19]} 4. Nxd4 {[%emt 0:00:07]} e5 {[%emt 0:01:13]} 5. Nb5 {[%emt 0:00:35]} d6 {[%emt 0:00:38]} 6. c4 {[%emt 0:01:09]} g6 {[%emt 0:01:11]} 7. N1c3 {[%emt 0:09:11]} a6 {[%emt 0:01:02]} 8. Na3 {[%emt 0:00:04]} Nf6 {[%emt 0:03:17]} 9. Be2 {[%emt 0:03:02]} Be6 {[%emt 0:05:33]} 10. Nc2 {[%emt 0:09:20]} Bg7 {[%emt 0:03:02]} 11. Be3 {[%emt 0:04:23]} Rc8 {[%emt 0:05:39]} 12. Qd2 {[%emt 0:20:02]} O-O {[%emt 0:10:00]} 13. Rd1 {[%emt 0:10:33]} Qa5 {[%emt 0:25:00]} 14. f3 {[%emt 0:15:25]} Nh5 {[%emt 0:11:03]} 15. g3 {[%emt 0:02:12]} Rcd8 {[%emt 0:09:26]} 16. O-O {[%emt 0:03:47]} f5 {[%emt 0:00:41]} 17. b4 {[%emt 0:02:49]} Qc7 {[%emt 0:00:10]} 18. Nd5 {[%emt 0:02:30]} Qf7 {[%emt 0:01:07]} 19. Bb6 {[%emt 0:03:06]} Rd7 {[%emt 0:02:28]} 20. a4 {[%emt 0:00:07]} Nf6 {[%emt 0:02:43]} 21. b5 {[%emt 0:02:57]} axb5 {[%emt 0:00:37]} 22. axb5 {[%emt 0:01:54]} Ne7 {[%emt 0:00:43]} 23. Nce3 {[%emt 0:02:55]} Kh8 {[%emt 0:03:52]} 24. Qd3 {[%emt 0:00:35]} Nh5 {[%emt 0:06:32]} 25. Ng2 {[%emt 0:02:24]} Nf6 {[%emt 0:01:49]} 26. Nge3 {[%emt 0:00:17]} Nh5 {[%emt 0:00:06]} 27. Ng2 {[%emt 0:00:03]} Nf6 {[%emt 0:00:11]} 28. Be3 {[%emt 0:00:04]} Rdd8 {[%emt 0:00:53]} 29. Bg5 {[%emt 0:01:11]} Bxd5 {[%emt 0:02:01]} 30. cxd5 {[%emt 0:00:05]} Nd7 {[%emt 0:00:12]} 31. Be3 {[%emt 0:00:07]} Rc8 {[%emt 0:00:34]} 32. Rc1 {[%emt 0:00:34]} b6 {[%emt 0:02:05]} 33. Rc6 {[%emt 0:00:37]} Nxc6 {[%emt 0:00:06]} 34. dxc6 {[%emt 0:00:09]} Nc5 {[%emt 0:00:08]} 35. Bxc5 {[%emt 0:00:08]} dxc5 {[%emt 0:00:19]} 36. Ne3 $1 {[%emt 0:00:04]} fxe4 {[%emt 0:00:45]} (36... Ra8 $14) 37. fxe4 {[%emt 0:00:34]} Qa2 {[%emt 0:00:05]} (37... Qa7 $16 {was called for.}) 38. Bg4 $2 {[%emt 0:00:55]} (38. Nd5 $18) 38... Rxf1+ {[%emt 0:01:40]} 39. Qxf1 {[%emt 0:00:22]} Rf8 {[%emt 0:00:30]} 40. c7 $1 {[%emt 0:02:01]} Qd2 $1 {[%emt 0:01:15]} (40... Rxf1+ $2 41. Nxf1 Qg8 42. c8=Q $18 (42. c8=B $2 Qc4 $19)) 41. Nd1 {[%emt 0:17:07]} (41. c8=R $2 Qxe3+ 42. Kg2 Qxe4+ 43. Kh3 Rxc8 44. Bxc8 Qd5 $19) (41. Nd5 $5 Qd4+ (41... Rxf1+ $2 42. Kxf1 h5 43. c8=Q+ $18) 42. Kg2 Qxe4+ (42... Rxf1 $2 43. Kxf1 h5 44. c8=Q+ $18) 43. Bf3 $16) 41... Qd4+ $1 {[%emt 0:06:00]} (41... Rxf1+ $2 42. Kxf1 Qd3+ (42... Qxh2 43. c8=Q+) 43. Kg2 Qxe4+ 44. Bf3 $18 (44. Kh3 h5 $17)) 42. Nf2 {[%emt 0:00:53]} c4 {[%emt 0:00:08]} 43. c8=Q {[%emt 0:00:20]} (43. c8=B $2 c3 44. Bd1 Rxc8 $19) 43... Rxc8 {[%emt 0:00:03]} 44. Bxc8 {[%emt 0:00:07]} c3 {[%emt 0:01:13]} 45. Be6 {[%emt 0:01:17]} c2 {[%emt 0:14:18]} 46. Bb3 {[%emt 0:00:47]} (46. Qc1 $5 Qc3 $8 47. Kg2 $11) 46... Qc3 {[%emt 0:01:11]} 47. Bxc2 $1 {[%emt 0:00:31]} Qxc2 {[%emt 0:00:05]} 48. Qa1 {[%emt 0:05:32]} Qc5 {[%emt 0:03:32]} 49. Qa8+ {[%emt 0:00:20]} Bf8 {[%emt 0:00:07]} 50. Kg2 {[%emt 0:00:13]} Kg8 {[%emt 0:01:58]} 51. Qd5+ {[%emt 0:03:49]} Kg7 $1 {[%emt 0:00:11]} 52. Qd7+ {[%emt 0:02:18]} Qe7 {[%emt 0:01:37]} 53. Qc6 {[%emt 0:00:37]} Qd6 {[%emt 0:00:25]} 54. Qb7+ {[%emt 0:00:47]} Be7 {[%emt 0:01:32]} 55. Ng4 {[%emt 0:00:53]} Kf8 {[%emt 0:02:04] [#]} (55... Qd2+ $11 56. Kf3 Qd1+ 57. Ke3 Qb3+ 58. Kf2 Qb2+ 59. Kg1 Kf8 60. Qa8+ (60. Qxb6 Qb1+ 61. Kg2 Qxe4+ 62. Kh3 Qf5 $17) 60... Kg7) 56. Qd5 $1 $16 {[%emt 0:01:51]} Qxd5 {[%emt 0:01:52]} (56... Qc5 $16 {is a better defense.}) 57. exd5 $18 {[%emt 0:00:04]} Bd6 {[%emt 0:01:09]} (57... e4 $142) 58. Kf3 {[%emt 0:00:37]} h5 $2 {[%emt 0:00:03] [#]} (58... e4+ 59. Kxe4 Ke7) 59. Ne3 $1 $18 {[%emt 0:00:31]} Ke7 {[%emt 0:01:52]} (59... e4+ $142 60. Kxe4 Ke7) 60. Ke4 $18 {[%emt 0:00:30]} Kf6 {[%emt 0:00:04]} 61. Nc4 {[%emt 0:01:00]} Bc7 {[%emt 0:00:04]} 62. h3 {[%emt 0:00:54]} Bd8 {[%emt 0:01:18]} 63. g4 {[%emt 0:01:38]} (63. Nxe5 $142 Bc7 64. g4 hxg4 65. hxg4 (65. Nxg4+ Kg5 $18)) 63... hxg4 {[%emt 0:00:22]} 64. hxg4 {[%emt 0:00:03]} (64. Nxe5 $2 gxh3 65. Ng4+ Ke7 $19) 64... Bc7 {[%emt 0:00:14]} 65. Nxe5 {[%emt 0:00:43]} (65. d6 Bd8 66. Nxe5 (66. Kd5 e4 $18) 66... Ke6) 1-0

[Event "Czech Extraliga 2024-25"]
[Site "Czechia"]
[Date "2024.11.02"]
[Round "1.3"]
[White "Hracek, Zbynek"]
[Black "Vykouk, Jan"]
[Result "1-0"]
[ECO "B72"]
[WhiteElo "2541"]
[BlackElo "2473"]
[Annotator "TA"]
[PlyCount "75"]
[EventDate "2024.09.12"]
[EventType "team-tourn"]
[EventCountry "CZE"]
[SourceTitle "playchess.com"]
[Source "ChessBase"]
[SourceQuality "1"]
[TimeControl "40/5400+30:1800+30"]

{[%evp 21,75,29,28,22,46,42,63,46,46,43,42,38,56,50,87,95,99,85,123,90,120,118,117,118,104,96,109,95,132,89,192,185,173,171,206,212,360,367,374,374,306,327,381,269,376,375,385,377,551,547,689,693,1739,1683,1810,1641]} 1. e4 {[%emt 0:00:03]} c5 {[%emt 0:00:05]} 2. Nf3 {[%emt 0:00:05]} d6 {[%emt 0:00:05]} 3. d4 {[%emt 0:00:09]} cxd4 {[%emt 0:00:06]} 4. Nxd4 {[%emt 0:00:03]} Nf6 {[%emt 0:00:08]} 5. Nc3 {[%emt 0:00:03]} Nc6 {[%emt 0:00:08]} 6. Be2 {[%emt 0:00:06]} g6 {[%emt 0:06:04]} 7. Be3 {[%emt 0:01:16]} Bg7 {[%emt 0:00:12]} 8. Qd2 {[%emt 0:00:08]} O-O {[%emt 0:01:21]} 9. O-O-O {[%emt 0:00:15]} Ng4 {[%emt 0:06:28]} 10. Bxg4 {[%emt 0:00:14]} Bxg4 {[%emt 0:00:05]} 11. f3 {[%emt 0:00:07]} Bd7 {[%emt 0:05:47]} 12. Kb1 {[%emt 0:01:01]} Rc8 {[%emt 0:03:37]} 13. Nxc6 {[%emt 0:09:41]} Rxc6 {[%emt 0:04:09]} 14. Bd4 {[%emt 0:00:26] White is slightly better.} (14. Bxa7 $2 Bxc3 15. bxc3 b6 $19) 14... Bxd4 {[%emt 0:14:09]} 15. Qxd4 {[%emt 0:00:02]} Be6 {[%emt 0:00:31]} 16. Nd5 {[%emt 0:08:37]} Bxd5 {[%emt 0:04:24]} 17. exd5 {[%emt 0:00:02]} Rb6 {[%emt 0:05:48]} 18. Rhe1 {[%emt 0:10:46][%cal Bh1e1,Be1e3,Be3e5][%mdl 32]} Qd7 {[%emt 0:02:31]} 19. Re3 {[%emt 0:03:56]} Ra6 {[%emt 0:11:22]} 20. Rde1 {[%emt 0:08:25] White has more active pieces.} Re8 {[%emt 0:00:23]} 21. b3 {[%emt 0:07:07]} e5 {[%emt 0:09:01]} 22. dxe6 {[%emt 0:00:07]} Rxe6 {[%emt 0:00:07]} 23. h4 {[%emt 0:13:16][%cal Bh2h4,Bh4h5,Bh5h6][%mdl 32]} d5 {[%emt 0:06:40]} 24. Re5 {[%emt 0:02:32]} Rab6 {[%emt 0:07:49]} 25. Kb2 $40 {[%emt 0:10:17][%cal Oh4h5][%mdl 128] White has strong attack.} (25. Qxd5 $2 {is the wrong capture.} Qxd5 26. Rxd5 Rxe1+ $19) 25... a6 {[%emt 0:00:09]} (25... Qe7 $16) 26. Rxd5 $18 {[%emt 0:03:03]} (26. Qxd5 $2 {perishes.} Qxd5 27. Rxd5 Rxe1 $19) 26... Rbd6 {[%emt 0:00:21]} 27. Ree5 {[%emt 0:01:59][%cal Be1e5,Be5d5,Bd5d8,Bd8h8,Bh8h7,Bh7h8,Bh8g8][%mdl 32]} Qd8 {[%emt 0:02:52]} 28. h5 {[%emt 0:05:20] And now h6 would win.} Rxd5 {[%emt 0:03:51]} (28... h6 {was worth a try.} 29. hxg6 Rxg6) 29. Rxd5 {[%emt 0:00:06]} Qf6 {[%emt 0:00:06]} 30. Qxf6 {[%emt 0:03:11]} Rxf6 {[%emt 0:00:03][%mdl 4096] Endgame. [#] KR-KR} 31. h6 {[%emt 0:00:51][%cal Rd5d8]} Kf8 {[%emt 0:00:02]} 32. Rd8+ {[%emt 0:00:04]} Ke7 {[%emt 0:00:03]} 33. Rh8 {[%emt 0:00:05]} Rd6 {[%emt 0:00:02]} 34. Rxh7 {[%emt 0:00:07]} Rd8 {[%emt 0:00:15]} (34... Rd2 $142 35. g4 Rf2) 35. f4 {[%emt 0:06:08] White is clearly winning.} ({Not} 35. Rg7 Kf8 $16) 35... Kf6 {[%emt 0:00:02]} 36. g4 {[%emt 0:00:40]} Rd4 {[%emt 0:04:08]} 37. Rh8 {[%emt 0:01:17]} Rxf4 {[%emt 0:00:49]} 38. Rg8 {[%emt 0:00:14] Weighted Error Value: White=0.06 (flawless) /Black=0.37.  Mistake:       	---       	Black=3      Inaccurate:     	White=1     	Black=6      OK:         	White=12    	Black=6      Best:        	White=3     	Black=1} 1-0

[Event "Czech Extraliga 2024-25"]
[Site "Czechia"]
[Date "2024.11.02"]
[Round "1.3"]
[White "Krejci, Jan"]
[Black "Miesbauer, Jan"]
[Result "1/2-1/2"]
[ECO "D53"]
[WhiteElo "2526"]
[BlackElo "2402"]
[Annotator "TA"]
[PlyCount "57"]
[EventDate "2024.09.12"]
[EventType "team-tourn"]
[EventCountry "CZE"]
[SourceTitle "playchess.com"]
[Source "ChessBase"]
[SourceQuality "1"]
[TimeControl "40/5400+30:1800+30"]

{[%evp 12,57,35,37,28,33,37,20,51,52,46,21,70,49,70,9,51,7,26,-28,-25,-17,-13,-19,0,0,0,0,0,0,-2,-206,56,-11,-11,-8,-8,0,0,-64,-42,-28,0,-33,0,-36,0,-63]} 1. c4 {[%emt 0:00:02]} e6 {[%emt 0:00:15]} 2. Nc3 {[%emt 0:00:19]} d5 {[%emt 0:00:07]} 3. d4 {[%emt 0:00:14]} Nf6 {[%emt 0:00:39]} 4. Bg5 {[%emt 0:02:38]} Be7 {[%emt 0:12:37]} 5. e3 {[%emt 0:00:18][%cal Be2e3,Be3e4][%mdl 32]} Nbd7 {[%emt 0:00:59]} 6. Nf3 {[%emt 0:00:51]} dxc4 {[%emt 0:03:03]} 7. Bxc4 {[%emt 0:01:15]} a6 {[%emt 0:00:12]} 8. a4 {[%emt 0:03:28]} c5 {[%emt 0:06:39]} 9. O-O {[%emt 0:00:51]} O-O {[%emt 0:00:39]} 10. e4 {[%emt 0:12:17]} cxd4 {[%emt 0:15:30]} 11. Qxd4 {[%emt 0:00:06]} Bc5 {[%emt 0:02:44]} (11... h6 $11 {feels stronger.} 12. Bh4 Qb6) 12. Qd2 $14 {[%emt 0:08:50] White is much more active. The black rooks are passive.} Qc7 {[%emt 0:02:33] Prevents e5.} 13. Bxf6 {[%emt 0:04:37]} (13. Rac1 $14) 13... gxf6 {[%emt 0:04:01]} 14. Ba2 {[%emt 0:06:54]} b6 {[%emt 0:06:49]} 15. Rfd1 {[%emt 0:01:52]} (15. Qh6 $142) 15... Ne5 $11 {[%emt 0:00:59]} 16. Nxe5 {[%emt 0:04:47]} Qxe5 {[%emt 0:00:38]} 17. Kh1 {[%emt 0:00:13]} (17. Qh6 {looks sharper.} Qg5 18. Qh3 Qf4 19. Rd3) 17... Bb7 {[%emt 0:05:43]} 18. f4 {[%emt 0:00:11]} Qh5 {[%emt 0:00:07]} 19. Qd7 {[%emt 0:05:41]} Rab8 {[%emt 0:01:35]} 20. Rd3 {[%emt 0:06:01][%cal Oa2e6]} Kh8 {[%emt 0:14:31] Threatens to win with ...Rg8.} 21. Rf1 $2 {[%emt 0:01:46] [#]} (21. Rad1 $11 {and White has nothing to worry.}) 21... f5 $2 {[%emt 0:05:36]} (21... Rbd8 $2 22. Qxd8 Rxd8 23. Rxd8+ Kg7 24. Rf3 $18) (21... Rg8 $1 $19 {[%cal Ob7e4] ...Bxe4! is the strong threat.} 22. Bc4 Qg6) 22. Rh3 {[%emt 0:06:44]} (22. b4 $1 $14 Bxe4 (22... Bxb4 $2 {loses.} 23. Qd4+ f6 24. Qxb4 $18) (22... fxe4 23. Rh3 $16) 23. bxc5 Bxd3 24. Qxd3 bxc5 25. Bc4 (25. Qxa6 Rg8 $14)) 22... Qg6 {[%emt 0:09:12] aiming for ...Rg8.} 23. Rg3 $1 {[%emt 0:00:06]} Rfd8 {[%emt 0:02:05]} 24. Qc7 {[%emt 0:02:52]} Qf6 {[%emt 0:01:29]} 25. Bb1 {[%emt 0:03:12]} (25. exf5 $1 $11 Bd6 (25... Qxf5 26. Bb1 $11) 26. Qc4) 25... Rdc8 {[%emt 0:01:57]} 26. Qd7 {[%emt 0:03:59]} Rd8 {[%emt 0:00:33]} 27. Qc7 {[%emt 0:00:01]} Rdc8 {[%emt 0:00:06]} 28. Qd7 {[%emt 0:01:04]} Rd8 {[%emt 0:00:06]} 29. Qc7 {[%emt 0:00:05] Weighted Error Value: White=0.30/Black=0.24 (precise) .  Loses game:     	White=1     	---        Missed win:     	---       	Black=1      Mistake:       	White=4     	Black=1      Inaccurate:     	White=1     	Black=2      OK:         	White=8     	Black=7      Best:        	White=3     	Black=1      Strong:       	White=1     	---} 1/2-1/2